Cogmind - Beta 13 X1 @@@ ROGUE MODE // 2023.09.21 @ 12:13:37 Player: DuckBoy Result: Destroyed by Y-54 Guardian with Gatling Laser Performance ------------- Evolutions (3) 1500 Regions Visited (8) 1600 Robots Destroyed (165) 825 Value Destroyed (4985) 4985 Prototype IDs (14) 280 Alien Tech Used (0) 0 Bonus (-148) -148 TOTAL SCORE: 9042 Bonus ------- High Alert Combat Kills 97 Friendly Fire -245 Cogmind --------- Core Integrity 0/700 Matter 290/300 Energy 100/100 System Corruption 19% Temperature Cool (18) Movement Core (700) Ox13 Location -7/Factory Parts ------- > --- POWER (1) -------- (None) > --- PROPULSION (2) --- (None) > --- UTILITY (7) ------ Armored Scrap Engine High-capacity Storage Unit Advanced Targeting Computer Hacking Suite > --- WEAPON (3) ------- (None) > --- INVENTORY (20) --- Medium Matter Pod (100) Kinecellerator Hacking Suite Relay Coupler [NC] (22) Relay Coupler [NC] (22) Relay Coupler [Swarmer] Relay Coupler [Grunt] (17) Relay Coupler [Grunt] (18) Relay Coupler [Duelist] (19) Relay Coupler [Specialist] Relay Coupler [Hunter] (13) System Restoration Module Improved Field Recycling Unit (0) Remote Datajack Peak State ------------ > --- POWER ------------ Deuterium-Ion Engine > --- PROPULSION ------- Hovering Antigrav-Gravmag Exoskeleton > --- UTILITY ---------- Armored Scrap Engine Improved Cooling System Improved Cooling System Advanced Targeting Computer Hacking Suite System Restoration Module > --- WEAPON ----------- Advanced Beam Rifle Hpw. EM Pulse Construct/G Flak Energy Pulse Construct/C > --- INVENTORY -------- Medium Matter Pod Transmission Jammer System Restoration Module Improved Field Recycling Unit Remote Datajack [Rating: 64] Favorites ----------- Power Heavy Ion Engine Engine Heavy Ion Engine Propulsion Constructs Treads Light Treads Wheel Compact Wheel Hover Unit Constructs Utility Large Storage Unit Device Armored Scrap Engine Storage Large Storage Unit Processor Improved Targeting Computer Hackware Hacking Suite Weapon Advanced Beam Cannon Energy Gun Advanced Beam Rifle Energy Cannon Advanced Beam Cannon Ballistic Gun Heavy Assault Rifle Ballistic Cannon Antimatter Cannon Launcher Missile Launcher Build | -11 -10 -10 -9 -9 -9 -7 -7 -7 ------- Run | Jun Mat Min Mat Sto Rec Fac Was Fac Slots Evolved 6 | . . . 2 . . 4 . . Power . | . . . . . . . . . Propulsion . | . . . . . . . . . Utility 5 | . . . 1 . . 4 . . Weapon 1 | . . . 1 . . . . . Parts Attached 78 | 6 3 . 8 18 10 23 2 8 Power 3 | 1 . . . 2 . . . . Engine 3 | 1 . . . 2 . . . . Core . | . . . . . . . . . Reactor . | . . . . . . . . . Propulsion 18 | 2 . . 3 7 6 . . . Treads 9 | . . . . 7 2 . . . Leg . | . . . . . . . . . Wheel 9 | 2 . . 3 . 4 . . . Hover . | . . . . . . . . . Flight . | . . . . . . . . . Utility 28 | 1 2 . 1 1 4 13 . 6 Device 18 | . 1 . . 1 4 8 . 4 Storage 4 | 1 1 . . . . . . 2 Processor 3 | . . . . . . 3 . . Hackware 3 | . . . 1 . . 2 . . Protection . | . . . . . . . . . Artifact . | . . . . . . . . . Weapon 29 | 2 1 . 4 8 . 10 2 2 Energy Gun 8 | . . . 2 3 . 2 . 1 Energy Cannon 9 | . . . . 5 . 4 . . Ballistic Gun 7 | 2 1 . 2 . . 2 . . Ballistic Cannon 2 | . . . . . . 2 . . Launcher 3 | . . . . . . . 2 1 Special Weapon . | . . . . . . . . . Impact Weapon . | . . . . . . . . . Slashing Weapon . | . . . . . . . . . Piercing Weapon . | . . . . . . . . . Special Melee Weapon . | . . . . . . . . . Unidentified Prototypes 9 | . . . 1 4 . 3 . 1 Corrupted Parts 1 | . . . . . . 1 . . System Corruption 3 | . . . . . . 3 . . Parts Lost 24 | . . . 2 4 . 5 3 10 Power 3 | . . . . 1 . 1 . 1 Propulsion 3 | . . . 1 . . . . 2 Utility 6 | . . . . . . 2 2 2 Weapon 12 | . . . 1 3 . 2 1 5 Highest Loss Streak 9 | . . . 1 2 . 2 2 9 To Critical Strikes . | . . . . . . . . . Average Slot Usage (%) 84 | . 91 100 88 99 87 77 68 80 Engine 7 | . 14 14 11 10 11 5 . 4 Core 1 | . . . . . . 1 7 2 Treads 8 | . . . . 21 11 3 4 3 Wheel 3 | . 28 28 20 . 4 1 2 . Device 15 | . 6 14 11 11 11 19 11 23 Storage 8 | . 14 14 11 11 11 7 4 4 Processor 6 | . . . . . . 15 11 7 Hackware 4 | . . . 2 11 4 1 7 7 Energy Gun 2 | . . . 9 4 . 2 . 4 Energy Cannon 18 | . . . . 23 33 11 7 10 Ballistic Gun 3 | . 28 28 23 4 . 2 . 2 Naked Turns . | . . . . . . . . . Heaviest Build 68 | 14 30 30 34 42 42 47 54 68 Greatest Support 48 | 32 32 32 32 40 42 48 44 42 Greatest Overweight (x) 4 | . . . 3 1 4 1 1 3 Average Overweight (x) . | . . . . . 1 . . . Largest Inventory Capacity 20 | 8 15 15 15 15 15 15 15 20 Average Capacity 14 | 7 14 15 15 15 15 15 11 13 Most Carried 15 | 4 10 10 15 15 15 15 15 15 Average Carried 11 | 1 5 10 12 14 11 12 11 7 Final Capacity 20 | 8 15 15 15 15 15 15 5 20 Final Carried 15 | 4 10 10 15 15 9 15 5 14 Scrap Engine Consumption 168 | . . . . . 26 99 5 38 Constructs Created 11 | . . . . . 2 6 1 2 Constructs Modified 50 | . . . . . 4 29 5 12 Class Distribution -------------------- 29% | Gunner 25% | Construct 19% | Commander-Gunner 10% | Commander-Construct 9% | Mutant 4% | Scavenger-Gunner Dominant Class ---------------- Mutant | -10/Materials Mutant | -10/Mines Gunner | -9/Materials Gunner | -9/Storage Commander-Gunner | -9/Recycling Gunner | -7/Factory Construct | -7/Waste Construct | -7/Factory Resources | -11 -10 -10 -9 -9 -9 -7 -7 -7 ----------- Run | Jun Mat Min Mat Sto Rec Fac Was Fac Matter Collected 2694 | 196 199 . 249 388 224 644 309 485 Remotely . | . . . . . . . . . Salvage Created 7471 | . 222 . 639 1782 1181 1850 775 1022 Parts 352 | . 15 . 49 96 38 104 6 44 Haulers Intercepted 13 | . 1 . 2 6 . 4 . . Recyclers Shooed 4 | . . . . . 3 1 . . Parts Field Recycled . | . . . . . . . . . Retrieved Matter . | . . . . . . . . . Parts Self-Destructed . | . . . . . . . . . Prevented . | . . . . . . . . . Kills | -11 -10 -10 -9 -9 -9 -7 -7 -7 ------- Run | Jun Mat Min Mat Sto Rec Fac Was Fac Combat Hostiles Destroyed 103 | . 3 . 10 28 9 30 4 19 Guns 36 | . 3 . 10 12 . 8 . 3 Cannons 53 | . . . . 14 9 18 . 12 AOE 9 | . . . . 1 . 2 4 2 Classes Destroyed 14 | . 3 . 4 2 1 2 1 1 Worker 11 | . . . 2 4 . 2 . 3 Builder 2 | . . . 2 . . . . . Hauler 13 | . 1 . 2 6 . 4 . . Recycler 19 | . . . . 4 12 3 . . Mechanic 2 | . . . . . . . . 2 Operator 4 | . . . . 1 . 2 . 1 Watcher 10 | . 1 . 2 2 . 4 . 1 Swarmer 21 | . . . 3 7 1 7 . 3 Grunt 31 | . 3 . 2 10 1 9 . 6 Brawler 1 | . . . . . . 1 . . Sentry 28 | . . . 5 11 4 3 . 5 Hunter 2 | . . . . . . 1 . 1 Programmer 17 | . . . . . 3 10 . 4 Compactor 4 | . . . . . . . 4 . Best Kill Streak 8 | . 4 . 4 8 4 5 3 6 Combat Bots Only 7 | . 3 . 3 7 3 3 3 4 Max Kills in Single Turn 3 | . 1 . 1 2 2 3 1 3 Gunslinging . | . . . . . . . . . Exploded 1 | . . . . 1 . 1 1 1 Melee . | . . . . . . . . . Uniques/NPCs Destroyed . | . . . . . . . . . Combat | -11 -10 -10 -9 -9 -9 -7 -7 -7 -------- Run | Jun Mat Min Mat Sto Rec Fac Was Fac Damage Taken 5599 | . 157 . 276 772 470 1118 595 2211 Core 921 | . 23 . 44 88 56 114 202 394 Absorbed by Shields 26 | . . . . . . 26 . . Regen/Repaired (Parts) 1198 | . . . . . 8 573 173 444 Core Remaining (%) 81 | 100 . 90 . . 53 . . . Volleys Fired 302 | . 18 . 32 77 27 77 18 53 Largest 3 | . 2 . 3 3 3 3 3 3 Hottest 204 | . 40 . 96 204 204 204 136 185 Shots Fired 826 | . 35 . 89 224 85 214 49 130 Gun 337 | . 35 . 89 116 . 72 . 25 Cannon 456 | . . . . 108 85 142 17 104 Launcher 33 | . . . . . . . 32 1 Special . | . . . . . . . . . Kinetic 290 | . 35 . 65 59 . 86 . 45 Thermal 427 | . . . 4 163 85 123 3 49 Explosive 33 | . . . . . . . 32 1 Electromagnetic 76 | . . . 20 2 . 5 14 35 Robot Hit Streak 38 | . 4 . 11 14 8 21 38 16 Robot Miss Streak 5 | . 1 . 3 4 3 4 1 5 Penetration Max . | . . . . . . . . . Secondary Targets . | . . . . . . . . . Shots Hit Robots 516 | . 26 . 53 121 48 137 38 93 Core Hits 261 | . 9 . 28 57 20 80 11 56 Critical Kills 5 | . . . . 1 1 3 . . Critical Parts Destroyed . | . . . . . . . . . Critical Strikes 15 | . . . 1 7 1 4 . 2 Burn 8 | . . . 1 6 . . . 1 Meltdown 4 | . . . . 1 1 2 . . Destroy 1 | . . . . . . 1 . . Blast 1 | . . . . . . 1 . . Corrupt 1 | . . . . . . . . 1 Melee Attacks . | . . . . . . . . . Impact . | . . . . . . . . . Slashing . | . . . . . . . . . Piercing . | . . . . . . . . . Sneak Attacks . | . . . . . . . . . Combat Hostiles . | . . . . . . . . . Follow-up Attacks . | . . . . . . . . . Damage Inflicted 14015 | . 326 . 875 2074 1163 3517 3263 2797 Guns 3357 | . 326 . 782 981 . 818 . 450 Cannons 6252 | . . . . 1057 1129 2170 81 1815 Explosions 4368 | . . . 93 32 . 529 3182 532 Melee . | . . . . . . . . . Ramming 38 | . . . . 4 34 . . . Kinetic 3081 | . 326 . 484 387 . 1135 . 749 Thermal 6198 | . . . 107 1644 1129 2023 54 1241 Explosive 3531 | . . . . . . 218 3182 131 Electromagnetic 1167 | . . . 284 39 . 141 27 676 Impact . | . . . . . . . . . Slashing . | . . . . . . . . . Piercing . | . . . . . . . . . Highest Corruption 19 | . 1 1 . 1 3 6 17 19 Average Corruption 4 | . 1 1 . 1 2 2 10 14 Corruption Purged 13 | . . . . . . 8 . 5 Corruption Blocked . | . . . . . . . . . Effects 180 | . 3 . . 13 67 31 12 54 Message Errors 40 | . 1 . . 3 15 7 2 12 Matter Fused 48 | . . . . 1 19 8 4 16 Heat Flow Errors 14 | . . . . 2 6 3 1 2 Energy Discharges 27 | . . . . 3 11 5 . 8 Parts Rejected 1 | . . . . . . . . 1 Parts Fused 3 | . . . . 1 2 . . . Data Loss (minor) 19 | . . . . 2 5 3 1 8 Data Loss (major) 6 | . . . . 1 2 2 . 1 Misfires 6 | . . . . . 4 1 . 1 Alerts 7 | . 1 . . . 3 1 . 2 Misdirections 2 | . . . . . . . 2 . Weapon Failures 7 | . 1 . . . . 1 2 3 Overload Shots . | . . . . . . . . . Overflow Damage 330 | . . . 7 28 109 71 2 113 Projectiles 204 | . . . . 10 109 55 . 30 Explosions 126 | . . . 7 18 . 16 2 83 Melee . | . . . . . . . . . Knockbacks 18 | . . . . . . 10 . 8 Impact . | . . . . . . . . . Kinetic 17 | . . . . . . 9 . 8 Secondary 1 | . . . . . . 1 . . Self-Inflicted Damage 626 | . . . 43 25 . 62 338 158 Shots 18 | . . . 2 1 . 1 8 6 Rammed 13 | . . . . 2 11 . . . Targets Rammed 14 | . . . . 2 12 . . . Kicked . | . . . . . . . . . Crushed 1 | . . . . . 1 . . . Highest Temperature 392 | . 26 . 4 328 392 210 137 232 Average Temperature 70 | . 9 . 2 59 97 60 41 51 Received Heat Transfer 1007 | . 105 . 69 207 18 266 . 342 Effects 2 | . . . . 2 . . . . Interference 2 | . . . . 2 . . . . Siege Activations . | . . . . . . . . . Robots Corrupted 1 | . . . . . . 1 . . Combat Hostiles . | . . . . . . . . . Parts Fried 7 | . . . . . . 1 . 6 Impact Corruptions . | . . . . . . . . . Robots Melted 6 | . . . . 1 1 2 . 2 Combat Hostiles 5 | . . . . 1 . 2 . 2 Parts Melted 37 | . . . 2 10 3 5 . 17 Heat Transferred 13485 | . . . 211 4009 1961 3225 74 4005 Parts Sabotaged . | . . . . . . . . . Parts Stolen . | . . . . . . . . . Parts Stripped . | . . . . . . . . . Power Chain Reactions 6 | . . . 2 1 . 1 . 2 Missiles Intercepted . | . . . . . . . . . Alert | -11 -10 -10 -9 -9 -9 -7 -7 -7 ------- Run | Jun Mat Min Mat Sto Rec Fac Was Fac Peak Influence 495 | . 84 32 258 423 310 495 213 487 Initial 169 | . . 32 12 . 139 50 169 115 Average 139 | . 44 32 86 291 39 150 178 213 Maximum Alert Level 2 | . . . 1 2 1 2 1 2 Low Security (%) 70 | 100 100 100 82 16 92 71 83 58 Level 1 24 | . . . 17 80 7 18 16 26 Level 2 5 | . . . . 2 . 10 . 14 Level 3 . | . . . . . . . . . Level 4 . | . . . . . . . . . Level 5 . | . . . . . . . . . High Security . | . . . . . . . . . Max Security . | . . . . . . . . . Squads Dispatched 23 | . 2 . . 4 . 8 . 9 Investigation 7 | . 1 . . 4 . . . 2 Extermination 10 | . . . . . . 8 . 2 Reinforcement 2 | . 1 . . . . . . 1 Assault . | . . . . . . . . . Garrison 4 | . . . . . . . . 4 Intercept . | . . . . . . . . . Searches Triggered . | . . . . . . . . . Construction Impeded 1 | . . . . . . . . 1 Haulers Reinforced . | . . . . . . . . . Active Scanning Responses . | . . . . . . . . . Cargo Convoy Interrupts . | . . . . . . . . . Stealth | -11 -10 -10 -9 -9 -9 -7 -7 -7 --------- Run | Jun Mat Min Mat Sto Rec Fac Was Fac Distress Signals 5 | . 1 . 2 1 1 . . . Communications Jammed 1 | . . . . . . . . 1 Distress Signals . | . . . . . . . . . Times Spotted 129 | . 6 . 17 31 8 39 6 22 Peak Tracking Total 9 | . 4 . 6 9 3 4 3 4 Tactical Retreats 3 | . . . 1 1 . 1 . . Traps | -11 -10 -10 -9 -9 -9 -7 -7 -7 ------- Run | Jun Mat Min Mat Sto Rec Fac Was Fac Traps Triggered 5 | . . . . 4 . 1 . . Indirectly . | . . . . . . . . . Trap Hack Attempts . | . . . . . . . . . Triggered . | . . . . . . . . . Disarmed . | . . . . . . . . . Reprogrammed 6 | . . . . . . 6 . . Reused . | . . . . . . . . . Traps Extracted . | . . . . . . . . . Installed . | . . . . . . . . . Triggered . | . . . . . . . . . Machines | -11 -10 -10 -9 -9 -9 -7 -7 -7 ---------- Run | Jun Mat Min Mat Sto Rec Fac Was Fac Machines Disabled 22 | . . . . 4 . 8 . 10 Max in Single Turn 5 | . . . . 1 . 5 . 4 Machines Repaired . | . . . . . . . . . Machines Sabotaged . | . . . . . . . . . Overloaded Fab Kills . | . . . . . . . . . Hacking | -11 -10 -10 -9 -9 -9 -7 -7 -7 --------- Run | Jun Mat Min Mat Sto Rec Fac Was Fac Machines Accessed 41 | . 3 . 3 8 8 13 . 6 Terminals 32 | . 3 . 3 7 6 8 . 5 Fabricators 3 | . . . . . . 3 . . Repair Stations . | . . . . . . . . . Recycling Units 4 | . . . . 1 2 1 . . Scanalyzers 1 | . . . . . . 1 . . Garrison Access 1 | . . . . . . . . 1 Total Hacks 114 | . 6 . 16 24 25 23 . 20 Successful 55 | . 1 . 9 12 12 13 . 8 Failed 59 | . 5 . 7 12 13 10 . 12 Catastrophic 14 | . 2 . 2 4 2 2 . 2 Database Lockouts . | . . . . . . . . . Manual 73 | . 6 . 12 15 11 20 . 9 Terminals 95 | . 6 . 16 21 21 14 . 17 Fabricators 6 | . . . . . . 6 . . Repair Stations . | . . . . . . . . . Recycling Units 9 | . . . . 3 4 2 . . Scanalyzers 1 | . . . . . . 1 . . Garrison Access 3 | . . . . . . . . 3 Terminal Hacks 26 | . . . 4 8 8 3 . 3 Part Schematic 2 | . . . . . 2 . . . Robot Schematic 3 | . . . . . 3 . . . Open Door 1 | . . . . 1 . . . . Branch Access Points 2 | . . . 1 . . . . 1 Terminal Index 1 | . . . . . . . . 1 Garrison Index 1 | . . . . 1 . . . . Alert Level 2 | . . . . 1 1 . . . Unreport Threat 7 | . . . 2 1 2 1 . 1 Locate Traps 3 | . . . . 2 . 1 . . Reprogram Traps 1 | . . . . . . 1 . . Dispatch Records 1 | . . . 1 . . . . . Hauler Manifests 1 | . . . . 1 . . . . Zone Layout 1 | . . . . 1 . . . . Fabricator Hacks 2 | . . . . . . 2 . . Load Schematic 1 | . . . . . . 1 . . Build 1 | . . . . . . 1 . . Repair Station Hacks . | . . . . . . . . . Recycling Unit Hacks 2 | . . . . 1 1 . . . Retrieve Components 2 | . . . . 1 1 . . . Scanalyzer . | . . . . . . . . . Garrison Access Hacks 1 | . . . . . . . . 1 Unlock Access 1 | . . . . . . . . 1 Unauthorized Hacks 24 | . 1 . 5 3 3 8 . 4 Terminals 17 | . 1 . 5 3 1 4 . 3 Assimilate 2 | . . . 2 . . . . . Botnet 13 | . 1 . 2 3 1 4 . 2 Operators 2 | . . . 1 . . . . 1 Fabricators 2 | . . . . . . 2 . . Report 1 | . . . . . . 1 . . Liberate 1 | . . . . . . 1 . . Repair Stations . | . . . . . . . . . Recycling Units 4 | . . . . . 2 2 . . Monitor 1 | . . . . . 1 . . . Reject 1 | . . . . . . 1 . . Recyclers 1 | . . . . . 1 . . . Mask 1 | . . . . . . 1 . . Scanalyzers . | . . . . . . . . . Garrison Access 1 | . . . . . . . . 1 Eject 1 | . . . . . . . . 1 Data Cores Recovered 3 | . . . . 1 . 2 . . Used . | . . . . . . . . . Hacking Detections 36 | . 3 . 3 8 8 10 . 4 Full Trace Events 8 | . 2 . 1 3 1 . . 1 Feedback Events 1 | . 1 . . . . . . . Corruption 1 | . 1 . . . . . . . Feedback Blocked . | . . . . . . . . . Robot Schematics Acquired 3 | . . . . . 3 . . . Robots Built 1 | . . . . . . 1 . . Authchips 1 | . . . . . . 1 . . Time 40 | . . . . . . 40 . . Total Robot Build Rating 1 | . . . . . . 1 . . Part Schematics Acquired 2 | . . . . . 2 . . . Parts Built . | . . . . . . . . . Authchips . | . . . . . . . . . Time . | . . . . . . . . . Total Part Build Rating . | . . . . . . . . . Parts Repaired . | . . . . . . . . . Time . | . . . . . . . . . Parts Recycled . | . . . . . . . . . Recycled Matter . | . . . . . . . . . Retrieved Matter . | . . . . . . . . . Retrieved Components 10 | . . . . 10 . . . . Parts Scanalyzed . | . . . . . . . . . Part Schematics Acquired . | . . . . . . . . . Parts Damaged . | . . . . . . . . . Bothacking | -11 -10 -10 -9 -9 -9 -7 -7 -7 ------------ Run | Jun Mat Min Mat Sto Rec Fac Was Fac Used RIF Installer . | . . . . . . . . . Robots Hacked . | . . . . . . . . . Non-combat . | . . . . . . . . . Combat . | . . . . . . . . . Robot Hacks Applied . | . . . . . . . . . Relay Couplers Released 11 | . . . . . . . . 11 Ejected 4 | . . . . . . . . 4 Programmers 7 | . . . . . . . . 7 Fabnet Peak Effective % . | . . . . . . . . . Robots Rewired 14 | . . . . . 13 1 . . Allies Hacked 2 | . . . . . . 2 . . Hacks Repelled . | . . . . . . . . . Allies | -11 -10 -10 -9 -9 -9 -7 -7 -7 -------- Run | Jun Mat Min Mat Sto Rec Fac Was Fac Total Allies 17 | . . . 1 . 13 2 1 . Largest Group 13 | . . . 1 . 13 12 1 . Highest-Rated Group 207 | . . . 10 . 207 197 31 . Highest-Rated Ally 34 | . . . 10 . 34 34 31 . Total Orders 20 | . . . . . 13 7 . . STAY 9 | . . . . . 5 4 . . FOLLOW 8 | . . . . . 6 2 . . AID 1 | . . . . . . 1 . . COLLECT 2 | . . . . . 2 . . . Ally Attacks 44 | . . . . . . 22 22 . Total Damage 526 | . . . . . . 254 272 . Kills 3 | . . . . . . 3 . . Allies Corrupted 1 | . . . . . . 1 . . Allies Melted . | . . . . . . . . . Intel | -11 -10 -10 -9 -9 -9 -7 -7 -7 ------- Run | Jun Mat Min Mat Sto Rec Fac Was Fac Robot Analysis Total . | . . . . . . . . . Derelict Logs Recovered . | . . . . . . . . . Drone Launches . | . . . . . . . . . Drone Recoveries . | . . . . . . . . . Exploration | -11 -10 -10 -9 -9 -9 -7 -7 -7 ------------- Run | Jun Mat Min Mat Sto Rec Fac Was Fac Turns Passed 12429 | 64 222 17 476 1790 3752 4465 289 1354 Spaces Moved 5842 | 54 148 18 297 778 1309 2428 141 669 Core 7 | 7 . . . . . . . . Treads 3146 | . . . . 730 790 1081 80 465 Legs 506 | . . . . . . 506 . . Wheels 1530 | 47 148 18 297 48 519 392 61 . Hover 653 | . . . . . . 449 . 204 Flight . | . . . . . . . . . Fastest Speed 50 | 50 100 100 95 95 110 105 139 139 Average Speed 162 | 93 100 100 104 181 216 139 158 165 Slowest Speed 297 | 100 100 100 125 240 240 207 191 297 Overloaded Moves . | . . . . . . . . . Propulsion Burnouts . | . . . . . . . . . Robots Hopped . | . . . . . . . . . Cave-ins Triggered . | . . . . . . . . . Exploration Rate (%) 45 | 3 28 7 35 97 99 41 87 13 Regions Visited 8 Branch Regions 3 Pre-discovered Areas . | . . . . . . . . . Known Exits Taken 1 | . . . 1 . . . . . Unknown Exits Taken 5 | 1 1 1 . 1 1 . . . Scrap Searched . | . . . . . . . . . Spaces Dug 4 | . . . . . . . . 4 Terrain Destroyed 209 | . . . 4 2 . 62 116 25 Melee . | . . . . . . . . . Projectile 14 | . . . . . . 4 1 9 AOE 195 | . . . 4 2 . 58 115 16 Terrain Rammed . | . . . . . . . . . Walls Destroyed . | . . . . . . . . . Machines Disabled . | . . . . . . . . . Actions | -11 -10 -10 -9 -9 -9 -7 -7 -7 --------- Run | Jun Mat Min Mat Sto Rec Fac Was Fac Total 8120 | 64 185 17 392 984 2159 3358 161 800 Wait 1665 | 1 11 . 46 72 706 774 . 55 Move 5835 | 53 147 17 296 777 1308 2428 140 669 Hop . | . . . . . . . . . Pick Up 66 | 4 5 . 7 9 3 24 1 13 Fast Attach 32 | 6 2 . 2 12 4 3 . 3 Attach 26 | . . . 2 . 3 16 2 3 Detach 10 | . . . . . 2 8 . . Swap 23 | . 1 . 4 8 3 5 . 2 Drop 68 | . 1 . 3 23 20 19 . 2 Fire 302 | . 18 . 32 77 27 77 18 53 Melee . | . . . . . . . . . Ram . | . . . . . . . . . Kick . | . . . . . . . . . Crush 14 | . . . . 2 12 . . . Escape Stasis 4 | . . . . 4 . . . . Rewire 75 | . . . . . 71 4 . . Trap . | . . . . . . . . . Miscellaneous . | . . . . . . . . . Route ------- -11/Junkyard -10/Materials -10/Mines -9/Materials (discovered 3 exits: [*Mat] / *Min / *Sto) -9/Storage (discovered 2 exits: [*Mat] / *Rec) -9/Recycling -7/Factory -7/Waste -7/Factory (discovered 3 exits: *Low x2 / Gar) History --------- Turn | Location | Event 28 | -11/Junkyard | Discovered new exit (range 15) 65 | -11/Junkyard | Entered Materials 209 | -10/Materials | Discovered new exit (range 16) 287 | -10/Materials | Entered Mines 298 | -10/Mines | Discovered new exit (range 6) 304 | -10/Mines | Entered Materials 304 | -9/Materials | Evolved 2 slots: Utility x1, Weapon x1 316 | -9/Materials | Identified exit to Mines 316 | -9/Materials | Identified exit to Storage 671 | -9/Materials | Build established: Gunner 707 | -9/Materials | Discovered new exit (range 16) 780 | -9/Materials | Entered Storage 984 | -9/Storage | Destroyed 7 combat bots 1201 | -9/Storage | Used back door to open Recycling access 1201 | -9/Storage | Discovered new exit (range 4) 1856 | -9/Storage | Discovered new exit (range 8) 2570 | -9/Storage | Entered Recycling 3197 | -9/Recycling | Build established: Commander-Gunner 3434 | -9/Recycling | Discovered new exit (range 8) 4242 | -9/Recycling | Found Scrap Engine 5408 | -9/Recycling | Build established: Commander-Construct 6322 | -9/Recycling | Entered Factory 6322 | -7/Factory | Accompanied by 13 allies 6322 | -7/Factory | Evolved 4 slots: Utility x4 6628 | -7/Factory | Build established: Commander-Gunner 6988 | -7/Factory | Discovered new exit (range 15) 7081 | -7/Factory | Build established: Gunner 8141 | -7/Factory | Fabricated M-13 Machinist (x1) 9052 | -7/Factory | Build established: Construct 10437 | -7/Factory | Build established: Mutant 10787 | -7/Factory | Sucked down chute 10787 | -7/Factory | Entered Waste 10788 | -7/Waste | Met a frightened Derelict 10802 | -7/Waste | EMP discharged 10814 | -7/Waste | Spotted C-40 Crusher 10818 | -7/Waste | Destroyed C-40 Crusher 10860 | -7/Waste | Build established: Construct 10871 | -7/Waste | Spotted C-40 Crusher 10879 | -7/Waste | Spotted C-40 Crusher 10884 | -7/Waste | Spotted C-40 Crusher 10887 | -7/Waste | Destroyed C-40 Crusher 10890 | -7/Waste | Destroyed C-40 Crusher 10898 | -7/Waste | Destroyed C-40 Crusher 10902 | -7/Waste | EMP discharged 10902 | -7/Waste | System corruption reached 10% 10917 | -7/Waste | Spotted C-40 Crusher 10947 | -7/Waste | Crushed by Compactor (1 part destroyed, 1 dropped) 10950 | -7/Waste | Crushed by Compactor (0 parts destroyed, 1 dropped) 10951 | -7/Waste | Spotted C-40 Crusher 10986 | -7/Waste | Crushed by Compactor (1 part destroyed) 11002 | -7/Waste | EMP discharged 11061 | -7/Waste | Discovered new exit (range 10) 11076 | -7/Waste | Entered Factory 11428 | -7/Factory | Identified exit to Lower Caves 11781 | -7/Factory | Found Prototype Launcher 11799 | -7/Factory | Identified exit to Garrison 11892 | -7/Factory | Garrison activated, responded to threat 12022 | -7/Factory | Core integrity fell below 50% 12394 | -7/Factory | Garrison activated, responded to threat 12403 | -7/Factory | Identified Rocket Array 12413 | -7/Factory | Core integrity fell below 20% 12430 | -7/Factory | Destroyed by Y-54 Guardian with Gatling Laser Last Messages --------------- 12397_ Destroyed Lgt. Nuclear Core. 12399_ Hovering Antigrav-Gravmag Exoskeleton destroyed. 12399_ Hovering Antigrav-Gravmag Exoskeleton core remains intact and functional. 12399_ Ballistic Construct/C destroyed. 12399_ Arm. Scrap Engine damaged due to network destabilization (-10). 12401_ S-27 Virus destroyed. 12402_ Hpw. EM Pulse Construct/G destroyed. 12402_ Arm. Scrap Engine damaged due to network destabilization (-8). 12403_ Identified Rocket Array. 12406_ Transmission Jammer destroyed. 12407_ Hovering Antigrav-Gravmag Exoskeleton destroyed. 12407_ Arm. Scrap Engine damaged due to network destabilization (-8). 12409_ Deuterium-Ion Engine destroyed. 12409_ Arm. Scrap Engine damaged due to network destabilization (-7). 12419_ Y-54 Guardian destroyed. 12419_ Rocket Array destroyed. 12419_ Destroyed Rocket Array. 12420_ The unstable cave ceiling collapses. 12420_ Imp. Cooling System destroyed. Map ----- +----------------------------------------------------+ | ????????????????????????????????????????? | | ????????????????????????????????????????? | | ????????????????????????????????????????? | | ????????????????????????????????????????? | | ????????????????????????????????????????? | | ????????????????????????????????????????? | | ????????????????????????????????????????? | | ????????????????????????????????????????? | | ????????????????????????????????????????? | | ????????????????????????????????????????? | | ???????????# ???????????????????????????? | | ???????????# ???????????????????????????? | | ???????????# ???????????????????????????? | | ???????????# ????????????????????######## | | ???????????# ##################### # | | ???????????# + """ # | | ???????????# ################# """ # | | ???????????# ## #?????????# """ # | | ???????????# ##"" #########?# # | | ???????????# ##"" # ""G""###! ]# | | ????######?# ##"T # "">"" ###+#### | | ?########### ##"" #??? | | ?# #"" # Y% #??? | | ?# # # """ #??? | | # // # ! # | "" "R" #??? | | + / % # ! # @ "" " #??? | | ?# = #######||! %% #### | | ?# % % %%s% %%% # | | ?# % ! !!!= % "" # | | ?# ! =%! % "" # | | ?# % |!!%% %%" # | | ?# % % # | | ?# # | | ?# # | | % ! # | | # ###### ! # | | #?###### ! # | | ??#// # # | | ??#/ # ###+########## # | | ??# # # #???## ### | | ??# + ########### ^ #????? #?? | | ??#| # #?????????# #????? #?? | | ??# # #?????????# """ """ #?????? #?? | | ??# # #?????????# """ """ #?????? #?? | | ??######+######????# """ """ #??????? #?? | | ????# #????# ^ #????????#?? | | ????# #????# ! ???????????? | | ????+ """ #????##########???????????? | | ????# """"" #?????????????????????????? | | ????# """"" ##????????????????????????? | +----------------------------------------------------+ Best States ------------- Heat Dissipation 88 Energy Generation 14 Energy Capacity 373 Matter Stores 300 Matter Capacity 300 Sight Range 16 Terrain Scan Range 16 Terrain Scan Density 10 Jamming Range 12 Evasion (%) 55 Targeting Accuracy 14 Recoil Reduction 2 Offensive Hacking 10 Authchip Count 5 Item Schematics ----------------- Shock Rifle | -9/Recycling | Hacked Hcp. Storage Unit | -9/Recycling | Hacked Robot Schematics ------------------ L-31 Rogue | -9/Recycling | Hacked M-13 Machinist | -9/Recycling | Hacked O-16 Technician | -9/Recycling | Hacked Fabricated ------------ M-13 Machinist | x1 | -7/Factory | Authchip Alien Tech Used ----------------- None Achievements -------------- None Challenges ------------ None Game ------ Seed PlatingHeatMapper Manual? 0 Play Time 01:33:23 Cumulative 346.6 hours Start 2023.09.21 @ 10:37:34 End 2023.09.21 @ 12:13:37 Sessions 1 Manual Loads 0 Difficulty Rogue Special Mode None Game No. 219 Rogue 216 Adventurer 3 Explorer 0 Win Type - Total 7 Types 6/0/1/0/0/0/0/0/0 Lore% 69 Gallery% 75 Achievement% 66 Wizard Run 0 Options --------- ASCII 0 Keyboard 0 Movement Numpad Keybinds 0 Fullscreen 1 Font 18/SmallcapsGlow Map View 76x50 Tactical HUD 1 Map Filters NONE Filters NONE Steam 1 RUN: ca7c30c8-9816-4004-87a2-208fc5b5f5a1